bitfinex-derivatives/quotes_BTCF0:USTF0_20250810
["timestamp","ask_amount","ask_price","bid_price","bid_amount"]
[1754848666313,0.0288,118660.0,118650.0,2.79682187]
[1754848666714,0.0288,118660.0,118650.0,2.07522187]
[1754848666915,0.0288,118660.0,118650.0,2.79682187]
[1754848667514,0.0288,118660.0,118650.0,2.81580005]
[1754848668112,0.0288,118660.0,118650.0,2.09420005]
[1754848668319,0.0288,118660.0,118650.0,2.81580005]
[1754848671419,0.0288,118660.0,118650.0,2.09420005]
[1754848671714,0.0288,118660.0,118650.0,2.81580005]
[1754848672117,0.0288,118660.0,118650.0,2.09420005]
[1754848672318,0.0288,118660.0,118650.0,2.81580005]
[1754848673019,0.0288,118660.0,118650.0,2.09420005]
[1754848673226,0.0288,118660.0,118650.0,2.80780005]
[1754848674314,0.04972404,118660.0,118650.0,2.80780005]
[1754848676016,0.04972404,118660.0,118650.0,2.48540274]
[1754848680321,0.09740404,118660.0,118650.0,2.47740274]
[1754848680506,0.14677404,118660.0,118650.0,2.47740274]
[1754848681015,0.23103814,118660.0,118650.0,2.15472543]
[1754848681227,0.23103814,118660.0,118650.0,2.47712274]
[1754848682107,0.23103814,118660.0,118650.0,1.83232812]
[1754848682410,0.23103814,118660.0,118650.0,2.47712274]
[1754848683922,0.23103814,118660.0,118650.0,2.235304]
[1754848684435,0.2101141,118660.0,118650.0,2.235304]
[1754848685823,0.12585,118660.0,118650.0,2.235304]
[1754848686216,0.210114,118660.0,118650.0,2.235304]
[1754848686422,0.12585,118660.0,118650.0,2.235304]
[1754848687421,0.12585,118660.0,118650.0,2.227304]
[1754848688128,0.2101141,118660.0,118650.0,2.227304]
[1754848689625,0.12585,118660.0,118650.0,2.227304]
[1754848690025,0.12585,118660.0,118650.0,1.505704]
[1754848690226,0.12585,118660.0,118650.0,2.227304]
[1754848690928,0.2101141,118660.0,118650.0,2.227304]
[1754848692138,0.12585,118660.0,118650.0,2.227304]
[1754848692329,0.2101141,118660.0,118650.0,2.227304]
[1754848692722,0.2101141,118660.0,118650.0,1.505704]
[1754848692924,0.2101141,118660.0,118650.0,2.227304]
[1754848695333,0.2101141,118660.0,118650.0,2.219304]
[1754848697230,0.23101685,118660.0,118650.0,2.219304]
[1754848698430,0.2101141,118660.0,118650.0,2.219304]
[1754848702335,0.2101141,118660.0,118650.0,2.211304]
[1754848703035,0.23086846,118660.0,118650.0,2.211304]
[1754848705431,0.23086846,118660.0,118650.0,1.445744]
[1754848705638,0.23086846,118660.0,118650.0,2.211224]
[1754848709439,0.23086846,118660.0,118650.0,2.203224]
[1754848709638,0.22967846,118660.0,118650.0,2.203224]
[1754848716548,0.22967846,118660.0,118650.0,2.195224]
[1754848718849,0.22967846,118660.0,118650.0,1.834424]
[1754848719151,0.19633846,118660.0,118650.0,1.18962938]
[1754848719338,0.23106846,118660.0,118650.0,1.834424]
[1754848723553,0.23106846,118660.0,118650.0,1.826424]
[1754848727342,0.23106846,118660.0,118650.0,1.18162938]
[1754848727846,0.23106846,118660.0,118650.0,1.826424]
[1754848728248,0.23106846,118660.0,118650.0,1.50402669]
[1754848730666,0.23106846,118660.0,118650.0,1.46775549]
[1754848730857,0.23106846,118660.0,118650.0,1.55202669]
[1754848732061,0.23106846,118660.0,118650.0,1.19122669]
[1754848732261,0.23106846,118660.0,118650.0,1.55202669]
[1754848735360,0.23106846,118660.0,118650.0,0.78654669]
[1754848735560,0.23106846,118660.0,118650.0,1.55186669]
[1754848736659,0.23106846,118660.0,118650.0,1.19106669]
[1754848736863,0.23106846,118660.0,118650.0,1.55186669]
[1754848737058,0.23106846,118660.0,118650.0,1.19106669]
[1754848737267,0.23106846,118660.0,118650.0,1.55186669]
[1754848737863,0.23096846,118660.0,118650.0,1.54386669]
[1754848744664,0.23096846,118660.0,118650.0,1.54382669]
[1754848744882,0.23106846,118660.0,118650.0,1.53592669]
[1754848747969,0.23106846,118660.0,118650.0,1.21352938]
[1754848748170,0.23106846,118660.0,118650.0,1.53592669]
[1754848749169,0.23106846,118660.0,118650.0,1.53284851]
[1754848749666,0.23106846,118660.0,118650.0,1.17204851]
[1754848749870,0.23106846,118660.0,118650.0,1.53284851]
[1754848750372,0.23206846,118660.0,118650.0,1.53284851]
[1754848750868,0.22906846,118660.0,118650.0,1.53284851]
[1754848751068,0.23406846,118660.0,118650.0,1.53384851]
[1754848752069,0.23406846,118660.0,118650.0,1.52584851]
[1754848754070,0.23406846,118660.0,118650.0,1.2034512]
[1754848754285,0.23406846,118660.0,118650.0,1.52584851]
[1754848759069,0.23406846,118660.0,118650.0,1.51784851]
[1754848759876,0.23406846,118660.0,118650.0,1.1954512]
[1754848760081,0.23406846,118660.0,118650.0,1.51784851]
[1754848761175,0.55449577,118660.0,118650.0,0.3619]
[1754848761378,0.55449577,118660.0,118650.0,0.0011]
[1754848761579,0.72304777,118660.0,118650.0,0.0011]
[1754848764584,0.78368345,118660.0,118650.0,0.0011]
[1754848766086,0.1331712,118650.0,118640.0,1.126]
[1754848766280,0.566327,118650.0,118640.0,1.44839731]
[1754848766881,0.24392969,118650.0,118640.0,1.44839731]
[1754848767290,0.24492969,118650.0,118640.0,1.44839731]
[1754848767480,0.24502969,118650.0,118640.0,1.44849731]
[1754848767787,0.24702969,118650.0,118640.0,1.53377591]
[1754848767982,0.24702969,118650.0,118640.0,0.76857591]
[1754848768184,0.24702969,118650.0,118640.0,1.53377591]
[1754848768480,0.24802969,118650.0,118640.0,1.53377591]
[1754848769087,0.24902969,118650.0,118640.0,1.53377591]
[1754848770794,0.25738043,118650.0,118640.0,1.53377591]
[1754848771588,0.25738043,118650.0,118640.0,1.2113786]
[1754848771886,0.25738043,118650.0,118640.0,1.53377591]
[1754848773088,0.25738043,118650.0,118640.0,1.2113786]
[1754848773286,0.25738043,118650.0,118640.0,1.52577591]
[1754848773691,0.25738043,118650.0,118640.0,1.53377591]
[1754848780195,0.25728043,118650.0,118640.0,1.52577591]
[1754848787299,0.25728043,118650.0,118640.0,1.51777591]
[1754848787502,0.25738043,118650.0,118640.0,1.51787591]
[1754848788202,0.57977774,118650.0,118640.0,1.1271]
[1754848788404,0.57977774,118650.0,118640.0,1.44949731]
[1754848788706,0.25738043,118650.0,118640.0,1.1271]
[1754848788911,0.57977774,118650.0,118640.0,0.68429731]
[1754848790604,0.56089361,118650.0,118640.0,0.68429731]
[1754848791198,0.2384963,118650.0,118640.0,0.68429731]
[1754848791597,0.56089361,118650.0,118640.0,0.68429731]
[1754848791807,0.56089361,118650.0,118640.0,0.3619]
[1754848792006,0.56089361,118650.0,118640.0,0.68429731]
[1754848793404,0.2384963,118650.0,118640.0,0.68429731]
[1754848793607,0.56089361,118650.0,118640.0,0.68429731]
[1754848794406,0.56089361,118650.0,118640.0,0.67629731]
[1754848794806,0.2384963,118650.0,118640.0,0.67629731]
[1754848795007,0.56089361,118650.0,118640.0,0.67629731]
[1754848797207,0.56089361,118650.0,118640.0,0.76057581]
[1754848801407,0.88329092,118650.0,118630.0,0.3608]
[1754848801611,1.28844711,118640.0,118630.0,0.3529]
[1754848801804,1.30920147,118640.0,118630.0,0.3529]
[1754848802706,1.30920147,118640.0,118630.0,0.4381867]
[1754848802999,1.31230147,118640.0,118630.0,0.76068401]
[1754848803405,1.31330147,118640.0,118630.0,0.76068401]
[1754848804010,1.31330147,118640.0,118630.0,0.4382867]
[1754848804211,1.31330147,118640.0,118630.0,0.76068401]
[1754848806809,1.31330147,118640.0,118630.0,0.4382867]
[1754848807011,1.31330147,118640.0,118630.0,0.76068401]
[1754848807217,1.31330147,118640.0,118630.0,0.4382867]
[1754848807414,1.31330147,118640.0,118630.0,0.76068291]
[1754848808323,1.31330147,118640.0,118630.0,0.67639731]
[1754848808918,1.31330147,118640.0,118630.0,0.76068301]
[1754848809107,1.31330147,118640.0,118630.0,0.75268301]
[1754848809513,1.31330147,118640.0,118630.0,0.66839731]
[1754848810013,1.31330147,118640.0,118630.0,0.75268301]
[1754848810211,1.31330147,118640.0,118630.0,0.346]
[1754848810613,0.99090416,118640.0,118630.0,0.346]
[1754848810819,0.99090416,118640.0,118630.0,0.66839731]
[1754848810820,1.31330147,118640.0,118630.0,0.66839731]
[1754848811521,0.99090416,118640.0,118630.0,0.75268301]
[1754848811708,1.31330147,118640.0,118630.0,0.75268301]
[1754848812215,1.31530147,118640.0,118630.0,0.346]
[1754848812617,1.31830147,118640.0,118630.0,0.346]
[1754848814220,1.31830147,118640.0,118630.0,0.0011]
[1754848816225,0.0842856,118630.0,118620.0,0.84488181]
[1754848816427,0.54544727,118630.0,118620.0,0.76058881]
[1754848817820,0.54744727,118630.0,118620.0,0.76058881]
[1754848818021,0.54754727,118630.0,118620.0,0.76068881]
[1754848819128,0.54754727,118630.0,118620.0,0.4382915]
[1754848819627,0.54754727,118630.0,118620.0,0.76068881]
[1754848821125,0.55254727,118630.0,118620.0,0.76068881]
[1754848822729,0.23014996,118630.0,118620.0,0.4382915]
[1754848822928,0.55254727,118630.0,118620.0,0.76068881]
[1754848823434,0.55254727,118630.0,118620.0,0.75268881]
[1754848823640,0.57156046,118630.0,118620.0,0.75268881]
[1754848824142,0.57156046,118630.0,118620.0,0.4302915]
[1754848824331,0.57156046,118630.0,118620.0,0.75268881]
[1754848824536,0.8943472,118630.0,118620.0,0.75268881]
[1754848824833,0.8943472,118630.0,118620.0,0.3609]
[1754848825034,0.8943472,118630.0,118620.0,0.68329731]
[1754848825345,0.8943472,118630.0,118620.0,0.76759001]
[1754848829042,0.89326653,118630.0,118620.0,0.76759001]
[1754848830154,0.89326653,118630.0,118620.0,0.3609]
[1754848830343,0.89326653,118630.0,118620.0,0.76759001]
[1754848830646,0.57086922,118630.0,118620.0,0.75959001]
[1754848830839,0.89326653,118630.0,118620.0,0.75959001]
[1754848831039,0.57086922,118630.0,118620.0,0.75959001]
[1754848831342,0.89326653,118630.0,118620.0,0.75959001]
[1754848831845,0.89326653,118630.0,118620.0,0.4371927]
[1754848832044,0.89326653,118630.0,118620.0,0.75959001]
[1754848833046,0.89326653,118630.0,118620.0,0.4371927]
[1754848833248,0.89326653,118630.0,118620.0,0.75959001]
[1754848834951,0.57086922,118630.0,118620.0,0.75959001]
[1754848836150,0.55119553,118630.0,118620.0,0.75959001]
[1754848836344,0.57087705,118630.0,118620.0,0.75959001]
[1754848837553,0.57087705,118630.0,118620.0,0.75159001]
[1754848844551,0.57087705,118630.0,118620.0,0.74359001]
[1754848846553,0.57087705,118630.0,118620.0,0.4211927]
[1754848846748,0.57087705,118630.0,118620.0,0.74359001]
[1754848847354,0.57087705,118630.0,118620.0,0.4211927]
[1754848847560,0.57087705,118630.0,118620.0,0.74359001]
[1754848848158,0.57087705,118630.0,118620.0,0.4211927]
[1754848848347,0.89327436,118630.0,118620.0,0.4211927]
[1754848848547,0.89327436,118630.0,118620.0,0.74359001]
[1754848850153,0.89327436,118630.0,118620.0,0.4211927]
[1754848850360,0.89327436,118630.0,118620.0,0.74359001]
[1754848851253,0.89327436,118630.0,118620.0,0.4211927]
[1754848851755,0.89327436,118630.0,118620.0,0.73559001]
[1754848852055,0.57087705,118630.0,118620.0,0.4131927]
[1754848852554,0.89327436,118630.0,118620.0,0.4131927]
[1754848852755,0.89327436,118630.0,118620.0,0.73559001]
[1754848853157,0.89327436,118630.0,118620.0,0.4131927]
[1754848853456,0.89327436,118630.0,118620.0,0.73559001]
[1754848853657,0.89327436,118630.0,118620.0,0.4131927]
[1754848854145,0.89327436,118630.0,118620.0,0.73559001]
[1754848854857,0.57087705,118630.0,118620.0,0.73559001]
[1754848855250,0.57087705,118630.0,118620.0,0.4131927]
[1754848855552,0.57087705,118630.0,118620.0,0.73559001]
[1754848855752,0.57087705,118630.0,118620.0,0.4131927]
[1754848856142,0.57087705,118630.0,118620.0,0.73559001]
[1754848857161,0.50240815,118630.0,118620.0,1.05798732]
[1754848857654,0.49626663,118630.0,118620.0,1.05798732]
[1754848857860,0.54967829,118630.0,118620.0,1.05798732]
[1754848858858,0.54967829,118630.0,118620.0,1.04998732]
[1754848860848,0.22689155,118630.0,118620.0,1.04998732]
[1754848863063,0.19317155,118630.0,118620.0,1.04998732]
[1754848863463,0.07949485,118630.0,118620.0,1.04998732]
[1754848864265,0.02611319,118630.0,118620.0,1.21858732]
[1754848864464,0.04579046,118630.0,118620.0,1.21858732]
[1754848865864,0.04579046,118630.0,118620.0,1.21058732]
[1754848866266,0.04579046,118630.0,118620.0,1.21921861]
[1754848866665,0.02611319,118630.0,118620.0,1.21921861]
[1754848869266,0.02611319,118630.0,118620.0,1.84161592]
[1754848869569,0.02611319,118630.0,118620.0,1.54161592]
[1754848870968,0.02611319,118630.0,118620.0,1.21921861]
[1754848872965,0.02611319,118630.0,118620.0,1.21121861]
[1754848873164,0.02611319,118630.0,118620.0,1.20258732]
[1754848873466,0.05012319,118630.0,118620.0,1.44440606]
[1754848875370,0.14502319,118630.0,118620.0,1.44440606]
[1754848875568,0.14502319,118630.0,118620.0,2.21544606]
[1754848875881,0.14502319,118630.0,118620.0,2.04684606]
[1754848879576,0.14502319,118630.0,118620.0,1.40205144]
[1754848879774,0.14502319,118630.0,118620.0,2.04684606]
[1754848880073,0.14502319,118630.0,118620.0,2.03884606]
[1754848884079,0.14502319,118630.0,118620.0,1.39405144]
[1754848884280,0.14502319,118630.0,118620.0,2.03884606]
[1754848885676,0.09819319,118630.0,118620.0,0.94540875]
[1754848885881,0.09819319,118630.0,118620.0,1.71664875]
[1754848885882,0.14502319,118630.0,118620.0,1.71664875]
[1754848886077,0.22931119,118630.0,118620.0,1.39425144]
[1754848886282,0.22931119,118630.0,118620.0,1.71664875]
[1754848887171,0.22931119,118630.0,118620.0,1.70864875]
[1754848890074,0.5517085,118630.0,118620.0,1.70864875]
[1754848890981,0.22931119,118630.0,118620.0,1.46683001]
[1754848892388,0.24892841,118630.0,118620.0,1.46683001]
[1754848894277,0.24892841,118630.0,118620.0,1.45883001]
[1754848901288,0.57132572,118630.0,118620.0,1.45083001]
[1754848901589,0.24892841,118630.0,118620.0,1.45083001]
[1754848902289,0.57132572,118630.0,118620.0,1.45083001]
[1754848902889,0.24892841,118630.0,118620.0,1.17803001]
[1754848903287,0.24892841,118630.0,118620.0,0.8556327]
[1754848903490,0.24892841,118630.0,118620.0,1.17803001]
[1754848903685,0.57132572,118630.0,118620.0,1.17803001]
[1754848903888,0.24892841,118630.0,118620.0,1.17803001]
[1754848904396,0.24892841,118630.0,118620.0,0.32249731]
[1754848904593,0.24892841,118630.0,118620.0,0.40679261]
[1754848905889,0.24892841,118630.0,118620.0,0.76759261]
[1754848906089,0.24892841,118630.0,118620.0,0.40679261]
[1754848906996,0.24892841,118630.0,118620.0,1.08998992]
[1754848907396,0.24892841,118630.0,118620.0,0.76759261]
[1754848907594,0.24892841,118630.0,118620.0,1.08998992]
[1754848908395,0.24882841,118630.0,118620.0,0.4371953]
[1754848908983,0.24882841,118630.0,118620.0,0.75959261]
[1754848911998,0.24882841,118630.0,118620.0,0.4371953]
[1754848912198,0.57132572,118630.0,118620.0,0.75969261]
[1754848912499,0.57132572,118630.0,118620.0,0.39889261]
[1754848913999,0.24892841,118630.0,118620.0,0.39889261]
[1754848915398,0.24892841,118630.0,118620.0,0.39089261]
[1754848915700,0.57132572,118630.0,118620.0,0.39089261]
[1754848915998,0.24892841,118630.0,118620.0,0.39089261]
[1754848916996,0.24892841,118630.0,118620.0,0.0684953]
[1754848917200,0.57132572,118630.0,118620.0,0.39089261]
[1754848917796,0.93212572,118630.0,118620.0,0.40679541]
[1754848918300,0.93212572,118630.0,118620.0,0.0001]
[1754848918798,1.10072572,118630.0,118620.0,0.0001]
[1754848922499,0.0842981,118620.0,118610.0,0.56741171]
[1754848922699,1.32300263,118620.0,118610.0,0.2450144]
[1754848923001,1.32300263,118620.0,118610.0,0.56741171]
[1754848923693,1.39280899,118620.0,118610.0,0.56741171]
[1754848923896,1.39590899,118620.0,118610.0,0.2451144]
[1754848924132,1.39590899,118620.0,118610.0,0.56751171]
[1754848930204,1.39590899,118620.0,118610.0,0.2451144]
[1754848930404,1.39590899,118620.0,118610.0,0.56751171]
[1754848930605,1.39590899,118620.0,118610.0,0.55951171]
[1754848931107,1.07351168,118620.0,118610.0,0.55951171]
[1754848931312,1.39590899,118620.0,118610.0,0.55951171]
[1754848936617,1.07351168,118620.0,118610.0,0.55951171]
[1754848936817,0.24904168,118620.0,118610.0,0.55951171]
[1754848937117,1.06940168,118620.0,118610.0,0.55951171]
[1754848937302,1.06940168,118620.0,118610.0,0.92031171]
[1754848937614,1.06940168,118620.0,118610.0,0.91231171]
[1754848944712,1.06940168,118620.0,118610.0,0.90431171]
[1754848945416,1.08830121,118620.0,118610.0,0.90431171]
[1754848945922,1.41069852,118620.0,118610.0,0.90431171]
[1754848946419,1.08830121,118620.0,118610.0,0.90431171]
[1754848947323,1.08830121,118620.0,118610.0,0.92164579]
[1754848951826,1.08830121,118620.0,118610.0,0.91364579]
[1754848953718,1.08829635,118620.0,118610.0,0.91364579]
[1754848954425,1.08829635,118620.0,118610.0,0.55284579]
[1754848954630,1.08829635,118620.0,118610.0,0.91364579]
[1754848956731,1.08829635,118620.0,118610.0,0.59124848]
[1754848956933,1.08829635,118620.0,118610.0,0.91364579]
[1754848958227,1.08829635,118620.0,118610.0,0.59124848]
[1754848958433,1.41069366,118620.0,118610.0,0.91364579]
[1754848958833,1.08829635,118620.0,118610.0,0.91364579]
[1754848959133,1.08829635,118620.0,118610.0,0.90564579]
[1754848960428,1.08829635,118620.0,118610.0,0.58324848]
[1754848960634,1.08829635,118620.0,118610.0,0.90564579]
[1754848960934,1.06868399,118620.0,118610.0,0.90564579]
[1754848961128,1.41069385,118620.0,118610.0,0.90564579]
[1754848961934,1.41069385,118620.0,118610.0,0.58324848]
[1754848962232,1.41069385,118620.0,118610.0,0.88831171]
[1754848962535,1.08829654,118620.0,118610.0,0.88831171]
[1754848962736,1.41069385,118620.0,118610.0,0.88831171]
[1754848963032,1.41069385,118620.0,118610.0,0.5659144]
[1754848963238,1.41069385,118620.0,118610.0,0.88831171]
[1754848965940,1.41069385,118620.0,118610.0,0.85190691]
[1754848966134,1.08829654,118620.0,118610.0,0.93621171]
[1754848972047,0.31425654,118620.0,118610.0,1.70945171]
[1754848973045,0.31425654,118620.0,118610.0,1.70145171]
[1754848974539,0.26793654,118620.0,118610.0,1.70145171]
[1754848974741,0.28264654,118620.0,118610.0,1.70145171]
[1754848974946,0.31666654,118620.0,118610.0,1.70145171]
[1754848977152,0.31666654,118620.0,118610.0,1.3790544]
[1754848977349,0.31666654,118620.0,118610.0,1.70145171]
[1754848980151,0.31666654,118620.0,118610.0,1.69345171]
[1754848980652,0.29776701,118620.0,118610.0,1.71065688]
[1754848982655,0.29776701,118620.0,118610.0,1.38825957]
[1754848982850,0.62016432,118620.0,118610.0,1.34985688]
[1754848983964,0.62016432,118620.0,118610.0,1.02745957]
[1754848984253,0.62016432,118620.0,118610.0,1.34877688]
[1754848984957,0.62016432,118620.0,118610.0,1.0091744]
[1754848985256,0.62016432,118620.0,118610.0,1.33157171]
[1754848986052,0.62016432,118620.0,118610.0,0.55941171]
[1754848987161,0.62016432,118620.0,118610.0,0.55141171]
[1754848987350,0.29776701,118620.0,118610.0,0.55141171]
[1754848987550,0.62016432,118620.0,118610.0,0.55141171]
[1754848987946,0.29776701,118620.0,118610.0,0.55141171]
[1754848988758,0.62016432,118620.0,118610.0,0.55141171]
[1754848995068,0.62016432,118620.0,118610.0,0.54341171]
[1754848999077,0.62016432,118620.0,118610.0,0.2210144]
[1754848999268,0.62016432,118620.0,118610.0,0.54341171]
[1754849000875,0.29776701,118620.0,118610.0,0.54341171]
[1754849001184,0.29776701,118620.0,118610.0,0.90421171]
[1754849002081,0.29776701,118620.0,118610.0,0.89621171]
[1754849002284,0.29776701,118620.0,118610.0,0.53541171]
[1754849002977,0.29776701,118620.0,118610.0,0.89621171]
[1754849003178,0.29776701,118620.0,118610.0,0.53541171]
[1754849003570,0.29776701,118620.0,118610.0,0.89621171]
[1754849003775,0.29776701,118620.0,118610.0,0.53541171]
[1754849003977,0.29776701,118620.0,118610.0,0.89621171]
[1754849004672,0.17944891,118620.0,118610.0,0.89621171]
[1754849004870,0.21137661,118620.0,118610.0,0.89621171]
[1754849005076,0.29753661,118620.0,118610.0,0.89621171]
[1754849009191,0.29753661,118620.0,118610.0,0.88821171]
[1754849013396,0.29753661,118620.0,118610.0,0.5658144]
[1754849013696,0.29753661,118620.0,118610.0,0.88821171]
[1754849014396,0.29753661,118620.0,118610.0,0.5658144]
[1754849014805,0.29753661,118620.0,118610.0,0.88821171]
[1754849015800,0.29753661,118620.0,118610.0,0.5658144]
[1754849016003,0.29753661,118620.0,118610.0,0.88821171]
[1754849016400,0.29753661,118620.0,118610.0,0.93621171]
[1754849016698,0.29756309,118620.0,118610.0,0.93621171]
[1754849023309,0.29756309,118620.0,118610.0,0.92821171]
[1754849024111,0.29756309,118620.0,118610.0,0.56741171]
[1754849024309,0.29756309,118620.0,118610.0,0.92821171]
[1754849026706,0.29756309,118620.0,118610.0,0.56741171]
[1754849026911,0.29756309,118620.0,118610.0,0.92821171]
[1754849027410,0.29756309,118620.0,118610.0,0.56741171]
[1754849027612,0.29756309,118620.0,118610.0,0.92821171]
[1754849028712,0.29756309,118620.0,118610.0,0.56741171]
[1754849029210,0.29756309,118620.0,118610.0,0.92821171]
[1754849029507,0.11732539,118620.0,118610.0,1.25060902]
[1754849030412,0.11732539,118620.0,118610.0,1.24260902]
[1754849034521,0.09254539,118620.0,118610.0,1.24260902]
[1754849035017,0.11506539,118620.0,118610.0,1.24260902]
[1754849035809,0.04725903,118620.0,118610.0,1.24260902]
[1754849037319,0.02762,118620.0,118610.0,1.24260902]
[1754849037521,0.02762,118620.0,118610.0,1.59540902]
[1754849039013,0.02762,118620.0,118610.0,1.83722776]
[1754849039715,0.02762,118620.0,118610.0,1.11562776]
[1754849040019,0.02762,118620.0,118610.0,1.83722776]
[1754849044520,0.04722512,118620.0,118610.0,1.83722776]
[1754849044824,0.04722512,118620.0,118610.0,1.82922776]
[1754849047128,0.04722512,118620.0,118610.0,1.10762776]
[1754849047426,0.04722512,118620.0,118610.0,1.82922776]
[1754849051734,0.04722512,118620.0,118610.0,1.82122776]
[1754849054637,0.02762,118620.0,118610.0,1.82122776]
[1754849058344,0.04724006,118620.0,118610.0,1.82122776]
[1754849058643,0.02472006,118620.0,118610.0,1.82122776]
[1754849058847,0.04876006,118620.0,118610.0,1.81322776]
[1754849066050,0.04876006,118620.0,118610.0,1.77692296]
[1754849066352,0.04876006,118620.0,118610.0,1.86122776]
[1754849072954,0.04866006,118620.0,118610.0,1.85322776]
[1754849080154,0.04866006,118620.0,118610.0,1.84522776]
[1754849080353,0.04876006,118620.0,118610.0,1.84532776]
[1754849087268,0.04876006,118620.0,118610.0,1.83732776]
[1754849091674,0.04876006,118620.0,118610.0,1.11572776]
[1754849091873,0.04876006,118620.0,118610.0,1.83732776]
[1754849094173,0.04876006,118620.0,118610.0,1.82932776]
[1754849094567,0.02472006,118620.0,118610.0,1.82932776]
[1754849094776,0.0051,118620.0,118610.0,1.82932776]
[1754849095271,0.0286,118620.0,118610.0,1.82932776]
[1754849098272,0.0286,118620.0,118610.0,1.58750902]
[1754849101276,0.0286,118620.0,118610.0,1.57950902]
[1754849102472,0.0051,118620.0,118610.0,1.57950902]
[1754849102674,0.06235,118640.0,118620.0,0.3371827]
[1754849102872,0.10552479,118640.0,118630.0,1.85932582]
[1754849103174,0.05310479,118640.0,118630.0,1.87784315]
[1754849103380,0.04317479,118640.0,118630.0,1.87784315]
[1754849103678,0.05749479,118640.0,118630.0,2.23864315]
[1754849103879,0.05759479,118640.0,118630.0,2.23874315]
[1754849104074,0.06359479,118640.0,118630.0,2.23874315]
[1754849104380,0.04392,118640.0,118630.0,2.23874315]
[1754849104582,0.04692,118640.0,118630.0,2.23874315]
[1754849105378,0.0296,118640.0,118630.0,2.23874315]
[1754849105676,0.0326,118640.0,118630.0,2.23974315]
[1754849106678,0.03344,118640.0,118630.0,2.23974315]
[1754849106875,0.03344,118640.0,118630.0,1.59494853]
[1754849107075,0.03344,118640.0,118630.0,2.23974315]
[1754849109473,0.03344,118640.0,118630.0,2.23174315]
[1754849117099,0.03344,118640.0,118630.0,2.22374315]
[1754849118596,0.0091,118640.0,118630.0,2.22374315]
[1754849118794,0.03344,118640.0,118630.0,2.22374315]
[1754849120201,0.0101004,118640.0,118630.0,2.22364315]
[1754849120402,0.08046,118660.0,118640.0,0.337486]
[1754849120601,0.11528234,118660.0,118650.0,1.85894172]
[1754849122307,0.09115234,118660.0,118650.0,1.85894172]
[1754849122507,0.13972234,118660.0,118650.0,1.85904172]
[1754849123008,0.14972234,118660.0,118650.0,1.86004172]
[1754849123510,0.14672234,118660.0,118650.0,2.22084172]
[1754849124007,0.12506,118660.0,118650.0,2.22184172]
[1754849124209,0.12506,118660.0,118650.0,2.21384172]
[1754849124511,0.55138844,118660.0,118650.0,0.81850764]
[1754849124706,0.55138844,118660.0,118650.0,1.22638764]
[1754849125105,0.55138844,118660.0,118650.0,1.54878495]
[1754849126211,0.55138844,118660.0,118650.0,1.19598495]
[1754849126612,0.55138844,118660.0,118650.0,0.42730495]
[1754849130013,0.22899113,118660.0,118650.0,0.42730495]
[1754849131215,0.22899113,118660.0,118650.0,0.41930495]
[1754849133010,0.22899113,118660.0,118650.0,0.41966495]
[1754849133514,0.22899113,118660.0,118650.0,0.74206226]
[1754849134806,0.22899113,118660.0,118650.0,1.10286226]
[1754849136518,0.22899113,118660.0,118650.0,0.09726764]
[1754849136716,0.22899113,118660.0,118650.0,0.41966495]
[1754849138223,0.22899113,118660.0,118650.0,0.41166495]
[1754849138610,0.22899113,118660.0,118650.0,0.73406226]
[1754849139212,0.22899113,118660.0,118650.0,1.09486226]
[1754849140121,0.22899113,118660.0,118650.0,0.73670762]
[1754849143221,0.22899113,118660.0,118650.0,0.37590762]
[1754849145323,0.22899113,118660.0,118650.0,0.36790762]
[1754849149720,0.22903518,118660.0,118650.0,0.36790762]
[1754849149926,0.22903518,118660.0,118650.0,0.72870762]
[1754849151523,0.18056518,118660.0,118650.0,0.72870762]
[1754849151731,0.22615518,118660.0,118650.0,0.72893762]
[1754849152231,0.22515518,118660.0,118650.0,0.72893762]
[1754849152929,0.22315518,118660.0,118650.0,0.72793762]
[1754849153128,0.22415518,118660.0,118650.0,0.72793762]
[1754849154721,0.22415518,118660.0,118650.0,0.71993762]
[1754849156525,0.22415518,118660.0,118650.0,0.71970762]
[1754849156828,0.22415518,118660.0,118650.0,0.71993762]
[1754849160131,0.22415518,118660.0,118650.0,1.0782414]
[1754849161319,0.02280518,118660.0,118650.0,1.0782414]
[1754849161723,0.04693518,118660.0,118650.0,1.0782414]
[1754849161929,0.04693518,118660.0,118650.0,1.0702414]
[1754849165528,0.02280518,118660.0,118650.0,1.0702414]
[1754849167539,0.02280518,118660.0,118650.0,0.42529764]
[1754849167725,0.02280518,118660.0,118650.0,1.0702414]
[1754849168127,0.04591518,118660.0,118650.0,1.0702414]
[1754849168934,0.02621,118660.0,118650.0,1.0702414]
[1754849169140,0.04588878,118660.0,118650.0,1.0702414]
[1754849169437,0.04588878,118660.0,118650.0,1.0622414]
[1754849170539,0.06036878,118660.0,118650.0,1.0622414]
[1754849171139,0.06036878,118660.0,118650.0,0.41729764]
[1754849171339,0.07029878,118660.0,118650.0,1.0622414]
[1754849173126,0.07029878,118660.0,118650.0,1.4230414]
[1754849174435,0.05581878,118660.0,118650.0,1.4230414]
[1754849176938,0.05581878,118660.0,118650.0,1.3867643]
[1754849177130,0.05581878,118660.0,118650.0,1.4710414]
[1754849180942,0.07029878,118660.0,118650.0,1.4710414]
[1754849184042,0.07029878,118660.0,118650.0,1.4630414]
[1754849184043,0.07019878,118660.0,118650.0,1.4630414]
[1754849185646,0.07017248,118660.0,118650.0,1.4630414]
[1754849185839,0.07027248,118660.0,118650.0,1.4631414]
[1754849190948,0.22447238,118660.0,118650.0,1.58668764]
[1754849191148,0.22447238,118660.0,118650.0,1.90115952]
[1754849191551,0.22447238,118660.0,118650.0,2.2236314]
[1754849195551,0.22447238,118660.0,118650.0,1.57868764]
[1754849195746,0.22447238,118660.0,118650.0,2.2236314]
[1754849195949,0.22447238,118660.0,118650.0,2.2238614]
[1754849198259,0.22447238,118660.0,118650.0,2.2158614]
[1754849198554,0.22447238,118660.0,118650.0,2.23445483]
[1754849199242,0.14020248,118660.0,118650.0,2.23445483]
[1754849199445,0.22447238,118660.0,118650.0,1.87766429]
[1754849202864,0.22447238,118660.0,118650.0,1.87743429]
[1754849203063,0.22447238,118660.0,118650.0,1.19440241]
[1754849205261,0.22447238,118660.0,118650.0,1.18640241]
[1754849207367,0.22447238,118660.0,118650.0,1.50887429]
[1754849212367,0.22447238,118660.0,118650.0,1.50087429]
[1754849212667,0.22447238,118660.0,118650.0,0.85593053]
[1754849212867,0.22447238,118660.0,118650.0,1.50087429]
[1754849219472,0.22447238,118660.0,118650.0,1.49287429]
[1754849222976,0.22447238,118660.0,118650.0,1.85367429]
[1754849226583,0.22447238,118660.0,118650.0,1.84567429]
[1754849228574,0.19253238,118660.0,118650.0,1.84567429]
[1754849230176,0.14006238,118660.0,118650.0,1.84567429]
[1754849230380,0.15424238,118660.0,118650.0,1.84567429]
[1754849231280,0.22527238,118660.0,118650.0,1.20073053]
[1754849231481,0.22527238,118660.0,118650.0,1.84567429]
[1754849233688,0.22527238,118660.0,118650.0,1.83767429]
[1754849234480,0.54774426,118660.0,118650.0,0.42377053]